bitfinex/quotes_ETHUSD_20220212
["timestamp","ask_amount","ask_price","bid_price","bid_amount"]
[1644637592218,1.15827911,2942.5,2942.3,1.44634057]
[1644637592421,0.001,2942.4,2942.2,0.00657266]
[1644637592619,0.001,2942.4,2942.3,1.44623917]
[1644637592820,1.15827911,2942.5,2942.3,1.44623917]
[1644637593020,0.001,2942.4,2942.3,1.44623917]
[1644637593420,0.001,2942.4,2942.3,1.45281172]
[1644637594419,0.001,2942.4,2942.3,1.44623917]
[1644637595672,0.001,2942.4,2942.3,1.46869214]
[1644637596474,0.85827909,2942.5,2942.3,1.46869214]
[1644637596669,0.85827909,2942.5,2942.4,1.44623917]
[1644637596870,0.8510614,2942.5,2942.4,1.44623917]
[1644637597069,0.85827917,2942.5,2942.4,1.44623917]
[1644637598077,0.8510614,2942.5,2942.4,1.44623917]
[1644637599118,1.1510614,2942.5,2942.4,1.44623917]
[1644637599316,3.64561001,2942.5,2942.3,0.02245297]
[1644637599516,0.4708,2942.4,2942.3,0.02902552]
[1644637599717,0.85043,2942.2,2941.8,0.21033153]
[1644637599914,3.05021799,2942.1,2941.8,0.21033153]
[1644637600115,0.001,2942.0,2941.8,0.21033153]
[1644637600316,0.491,2941.9,2941.8,0.21033153]
[1644637600519,1.34241,2941.9,2941.8,0.21033153]
[1644637600916,2.20067799,2941.9,2941.8,0.21033153]
[1644637601118,2.50067799,2941.9,2941.8,0.21033153]
[1644637601720,1.34241,2941.9,2941.8,0.21033153]
[1644637601917,1.34241,2941.9,2941.8,0.04053153]
[1644637601918,0.492,2941.9,2941.8,0.04053153]
[1644637602775,1.95682733,2941.9,2941.8,0.04053153]
[1644637603474,2.95682733,2941.9,2941.8,0.04053153]
[1644637603873,4.65774733,2941.9,2941.8,0.04053153]
[1644637604673,3.35774733,2941.9,2941.8,0.04053153]
[1644637604875,4.65774733,2941.9,2941.8,0.04053153]
[1644637605073,8.29097274,2941.9,2941.8,0.04053153]
[1644637605675,7.0068273,2941.9,2941.8,0.04053153]
[1644637606123,3.67360189,2941.9,2941.8,0.04053153]
[1644637606421,1.37268189,2941.9,2941.8,0.04053153]
[1644637607226,1.97268189,2941.9,2941.8,0.04053153]
[1644637607526,1.37268189,2941.9,2941.8,0.04053153]
[1644637607927,1.97268189,2941.9,2941.8,0.04053153]
[1644637608326,1.37268189,2941.9,2941.8,0.04053153]
[1644637610168,1.37268189,2941.9,2941.8,0.06160053]
[1644637611470,0.50785456,2941.9,2941.8,0.06160053]
[1644637613521,0.01685456,2941.9,2941.8,0.06160053]
[1644637613723,0.01585456,2941.9,2941.8,1.50791529]
[1644637615322,0.8501365,2942.3,2941.8,1.48684629]
[1644637615522,0.8501365,2942.3,2941.8,0.04053153]
[1644637616325,0.8501365,2942.3,2941.9,0.00655405]
[1644637617176,0.8501365,2942.3,2941.8,0.04053153]
[1644637617579,0.8501365,2942.3,2942.0,0.00655394]
[1644637618582,0.8501365,2942.3,2941.8,0.04053153]
[1644637618779,0.8501365,2942.3,2942.0,0.00655383]
[1644637619581,0.8501365,2942.3,2941.8,0.04053153]
[1644637619981,0.8501365,2942.3,2942.0,0.006561]
[1644637620282,0.01866205,2942.2,2942.1,0.02704379]
[1644637624321,0.12586529,2941.8,2941.7,0.00258571]
[1644637624870,0.12586529,2941.8,2941.7,1.44633702]
[1644637625066,0.12586529,2941.8,2941.7,1.44892273]
[1644637628275,0.12586529,2941.8,2941.7,1.4489188]
[1644637630124,0.15454232,2941.8,2941.7,1.4489188]
[1644637632973,4.232e-05,2941.8,2941.7,1.4489188]
[1644637633174,0.00822036,2942.3,2941.9,0.0008]
[1644637633379,0.00722036,2942.3,2941.9,2.44713309]
[1644637633573,0.00722036,2942.3,2942.0,1.44633309]
[1644637633974,1.00411743,2942.8,2941.9,2.44713309]
[1644637634175,0.001,2942.7,2942.0,1.44633309]
[1644637634376,0.00722219,2942.3,2942.1,1.44633309]
[1644637634576,0.00722219,2942.3,2941.9,0.00734731]
[1644637634775,0.00722219,2942.3,2942.0,1.44623213]
[1644637634976,0.00722219,2942.3,2941.9,0.00734731]
[1644637635175,0.00722219,2942.3,2941.9,0.0008]
[1644637635176,0.8501511,2942.3,2941.9,0.0008]
[1644637635381,3.70381272,2942.2,2941.9,0.0008]
[1644637635577,0.001,2942.1,2941.9,0.00734731]
[1644637635776,0.492,2942.1,2941.9,0.00734731]
[1644637636019,0.491,2942.1,2941.9,0.00734731]
[1644637636520,0.1698,2942.0,2941.9,0.0008]
[1644637636718,0.1698,2942.0,2941.9,0.00734731]
[1644637637118,0.1708,2942.0,2941.9,0.00734731]
[1644637637720,0.1708,2942.0,2941.9,0.0008]
[1644637640172,0.01947577,2942.0,2941.9,0.02701297]
[1644637640374,0.01847577,2942.0,2941.9,0.02701297]
[1644637642980,7.577e-05,2942.0,2941.9,0.02701297]
[1644637643431,7.577e-05,2942.0,2941.9,0.32701297]
[1644637643624,7.577e-05,2942.0,2941.9,1.47336924]
[1644637643823,7.577e-05,2942.0,2941.9,1.64316924]
[1644637645424,0.02569474,2942.3,2941.9,1.61695627]
[1644637645623,0.02569474,2942.3,2942.0,1.44635627]
[1644637646024,0.01847577,2942.3,2942.0,1.44635627]
[1644637646423,0.02569509,2942.3,2942.0,1.44635627]
[1644637647172,0.01847577,2942.3,2942.0,1.44635627]
[1644637647578,0.02569512,2942.3,2942.0,1.44635627]
[1644637648177,0.02569512,2942.3,2941.9,0.17714662]
[1644637648382,0.01947577,2942.3,2941.9,0.0008]
[1644637648777,0.02669503,2942.3,2941.9,1.45367644]
[1644637648978,0.02669503,2942.3,2941.9,0.00734662]
[1644637649178,0.87689933,2942.3,2941.9,0.00734662]
[1644637649677,0.1698,2942.2,2941.9,0.0008]
[1644637649878,0.1708,2942.2,2941.9,0.00734663]
[1644637650933,0.1708,2942.2,2941.9,0.0008]
[1644637651123,0.1708,2942.2,2941.9,0.00734663]
[1644637651523,0.1698,2942.2,2941.9,0.00734663]
[1644637652123,0.1698,2942.2,2941.9,0.0008]
[1644637652328,0.00721916,2942.3,2941.9,0.00734663]
[1644637653027,1.11819352,2942.2,2941.9,0.00734663]
[1644637653229,4.28107679,2942.1,2941.9,0.0008]
[1644637653429,0.001,2942.0,2941.9,0.0008]
[1644637653627,0.6618,2942.1,2941.9,0.00734663]
[1644637654227,3.53074324,2942.0,2941.9,0.00734663]
[1644637654427,3.53074324,2942.0,2941.9,0.0008]
[1644637654428,1.001,2942.0,2941.9,0.0008]
[1644637654669,1.301,2942.0,2941.9,0.0008]
[1644637655171,2.35142,2942.0,2941.9,0.0008]
[1644637655571,2.65142,2942.0,2941.9,0.0008]
[1644637655770,3.65142,2942.0,2941.9,0.0008]
[1644637658419,1.501,2942.0,2941.9,0.0008]
[1644637658820,2.801,2942.0,2941.9,0.0008]
[1644637659022,1.801,2942.0,2941.9,0.0008]
[1644637659220,2.801,2942.0,2941.9,0.0008]
[1644637660122,3.292,2942.0,2941.9,0.0008]
[1644637660724,4.14237,2942.0,2941.9,0.0008]
[1644637661923,7.92940536,2942.0,2941.9,0.0008]
[1644637662573,4.14237,2942.0,2941.9,0.0008]
[1644637663372,7.74462682,2942.0,2941.9,0.0008]
[1644637663573,7.74462682,2942.0,2941.8,0.03774869]
[1644637663574,2.15,2941.8,2941.6,0.00258571]
[1644637663775,3.6008544,2941.7,2941.5,0.00264608]
[1644637663972,0.8504244,2941.7,2941.2,0.00264608]
[1644637664174,0.8504244,2941.7,2941.1,0.1698]
[1644637664373,0.8504244,2941.7,2941.2,1.44655963]
[1644637664572,0.8504244,2941.7,2941.3,0.00264608]
[1644637664772,1.7008444,2941.7,2941.3,0.00264608]
[1644637664972,1.7008444,2941.7,2941.1,0.1698]
[1644637665175,2.5512644,2941.7,2941.2,1.44655963]
[1644637665374,2.5512644,2941.7,2941.2,1.44920571]
[1644637665574,2.5512644,2941.7,2940.9,0.1698]
[1644637665575,2.5512644,2941.7,2941.3,1.44920571]
[1644637665774,2.5512644,2941.7,2941.0,1.44920571]
[1644637666018,0.8503929,2941.6,2941.1,0.00264608]
[1644637666619,2.1918488,2941.8,2941.1,0.00264608]
[1644637666819,0.492,2941.8,2941.1,0.00264608]
[1644637667019,0.491,2941.8,2941.1,0.00264608]
[1644637667826,1.3413214,2941.8,2941.1,0.00264608]
[1644637668126,1.3423214,2941.8,2941.3,0.00766264]
[1644637668325,1.3413214,2941.8,2941.4,1.44655963]
[1644637668525,1.3423214,2941.8,2941.4,1.44655963]
[1644637668725,1.3413214,2941.8,2941.5,0.00264608]
[1644637668933,1.3423214,2941.8,2941.5,0.00264608]
[1644637669124,1.3413214,2941.8,2941.5,1.45693368]
[1644637669324,1.3423214,2941.8,2941.6,1.44655963]
[1644637669524,0.491,2941.8,2941.6,1.44920571]
[1644637669767,0.491,2941.8,2941.6,1.44655963]
[1644637670367,0.491,2941.8,2941.6,0.00772789]
[1644637670571,1.3413238,2941.8,2941.6,0.00772789]
[1644637670769,1.3423238,2941.8,2941.6,0.00772789]
[1644637671370,1.3423238,2941.8,2940.9,0.17244608]
[1644637671572,1.3423238,2941.8,2941.6,0.00772789]
[1644637672572,1.3423238,2941.8,2941.1,0.00264608]
[1644637672573,0.001,2941.8,2941.1,0.00264608]
[1644637672774,0.601,2941.9,2941.6,0.00764311]
[1644637672972,0.001,2941.9,2941.6,0.00764311]
[1644637673424,0.001,2941.9,2941.7,1.44639946]
[1644637674222,0.001,2941.9,2941.7,0.00764303]
[1644637674419,0.001,2941.9,2941.8,1.44639946]
[1644637676521,0.001,2941.9,2941.7,0.00764879]
[1644637676726,0.001,2941.9,2941.8,1.44639946]
[1644637677773,0.001,2941.9,2941.7,0.00764879]
[1644637677973,0.001,2941.9,2941.8,1.44639946]
[1644637678775,0.001,2941.9,2941.5,0.00264608]
[1644637678973,0.001,2941.9,2941.8,1.44639946]
[1644637679976,0.03575572,2941.9,2941.8,1.44639946]
[1644637680178,0.03575572,2941.9,2941.7,0.00764839]
[1644637680676,0.03575572,2941.9,2941.8,1.44639946]
[1644637682221,0.03575572,2941.9,2941.8,4.94639946]
[1644637686668,0.03575572,2941.9,2941.8,4.94626934]
[1644637688273,0.03417712,2941.9,2941.8,4.94626934]
[1644637691223,0.03417712,2941.9,2941.8,3.5]
[1644637691521,0.03417712,2941.9,2941.8,4.94639551]
[1644637692875,0.03417712,2941.9,2941.8,3.5]
[1644637693075,0.03417712,2941.9,2941.8,4.94638294]
[1644637698326,0.03417712,2941.9,2941.8,3.5]
[1644637699126,1.06107062,2941.9,2941.8,3.5]
[1644637699326,0.20397712,2941.9,2941.8,3.5]
[1644637699526,0.03417712,2941.9,2941.8,3.5]
[1644637699772,0.33417712,2941.9,2941.8,3.5]
[1644637700274,4.67925275,2941.9,2941.8,3.5]
[1644637700672,1.80397712,2941.9,2941.8,3.5]
[1644637700873,0.20397712,2941.9,2941.8,3.5]
[1644637701074,0.03417712,2941.9,2941.8,3.5]
[1644637701476,0.33417712,2941.9,2941.8,3.5]
[1644637701675,0.63417712,2941.9,2941.8,3.5]
[1644637702075,0.33417712,2941.9,2941.8,3.5]
[1644637702283,0.63417712,2941.9,2941.8,3.5]
[1644637704123,0.03417712,2941.9,2941.8,3.5]
[1644637704323,0.63417712,2941.9,2941.8,3.5]
[1644637704724,1.63417712,2941.9,2941.8,3.5]
[1644637705923,0.63417712,2941.9,2941.8,3.5]
[1644637711525,0.33417712,2941.9,2941.8,3.5]
[1644637711722,1.63417712,2941.9,2941.8,3.5]
[1644637712123,5.17636031,2941.9,2941.8,3.49892675]
[1644637712325,6.03345381,2941.9,2941.8,3.49892675]
[1644637712930,1.63417712,2941.9,2941.8,3.49892675]
[1644637713330,0.63417712,2941.9,2941.8,3.49892675]
[1644637713527,1.63417712,2941.9,2941.8,3.49892675]
[1644637713827,5.158227,2941.9,2941.8,3.49892675]
[1644637714027,5.15968559,2941.9,2941.8,3.49892675]
[1644637714975,1.63417712,2941.9,2941.8,3.49892675]
[1644637715776,0.63417712,2941.9,2941.8,3.49892675]
[1644637715977,1.63417712,2941.9,2941.8,3.49892675]
[1644637716179,5.15845769,2941.9,2941.8,3.49892675]
[1644637718184,5.64945769,2941.9,2941.8,3.49892675]
[1644637725282,6.50655119,2941.9,2941.8,3.49892675]
[1644637725683,5.64945769,2941.9,2941.8,3.49892675]
[1644637725926,6.50655119,2941.9,2941.8,3.49892675]
[1644637726327,5.64945769,2941.9,2941.8,3.49892675]
[1644637727733,6.50600421,2941.9,2941.8,3.49892675]
[1644637728756,5.64945769,2941.9,2941.8,3.49892675]
[1644637730073,3.5,2941.8,2941.1,0.00264796]
[1644637730277,3.5,2941.8,2940.8,0.25]
[1644637730278,3.5,2941.5,2940.8,0.25]
[1644637730478,0.85649768,2941.2,2940.4,0.03062859]
[1644637730674,5.0,2940.8,2940.5,1.44693054]
[1644637730876,5.0,2940.8,2940.1,10.01390287]
[1644637730877,5.54749768,2940.7,2940.1,10.01390287]
[1644637731074,1.09818504,2940.5,2940.1,10.01390287]
[1644637731278,0.85093,2940.3,2940.1,10.01390287]
[1644637731474,1.34191,2940.2,2940.1,10.01390287]
[1644637731674,1.64191,2940.2,2940.1,10.01390287]
[1644637731874,2.94191,2940.2,2940.1,10.01390287]
[1644637734123,0.491,2940.2,2940.1,10.01390287]
[1644637735525,0.51830412,2940.2,2940.1,10.01390287]
[1644637738879,0.51830412,2940.2,2940.1,13.51390287]
[1644637739380,3.55,2940.1,2940.0,0.00791257]
[1644637739583,7.80814463,2940.1,2940.0,0.00791257]
[1644637739783,3.55,2940.0,2938.3,11.5175]
[1644637739981,4.90088372,2939.9,2938.5,0.17]
[1644637740182,6.37388372,2939.9,2939.5,0.03165612]
[1644637740384,1.85097,2939.8,2939.5,0.03165612]
[1644637740581,4.09277261,2939.7,2939.5,0.03165612]
[1644637740782,1.49240369,2939.6,2939.5,0.03165612]
[1644637741024,1.98340369,2939.6,2938.7,1.1656]
[1644637741224,0.85260788,2939.1,2938.7,1.1656]
[1644637741426,0.85260788,2939.1,2938.8,1.44752484]
[1644637741823,0.85260788,2939.1,2938.4,1.3007]
[1644637742024,0.85260788,2939.1,2938.5,1.44752734]
[1644637742827,3.54902887,2939.0,2938.5,1.44752734]
[1644637743032,0.85128,2939.0,2938.4,1.3007]
[1644637743228,0.791,2938.9,2938.4,1.3007]
[1644637743427,0.491,2938.8,2938.4,0.1701]
[1644637743629,0.491,2938.8,2938.6,0.00237716]
[1644637744684,0.491,2938.8,2938.4,0.1701]
[1644637744889,0.491,2938.8,2938.6,0.00237716]
[1644637745086,3.50562225,2938.7,2938.6,0.00237716]
[1644637745287,5.29662225,2938.7,2938.6,0.00237716]
[1644637745487,1.791,2938.7,2938.6,0.00237716]
[1644637745688,5.30532469,2938.7,2938.6,0.00237716]
[1644637745889,1.791,2938.7,2938.4,0.1701]
[1644637746191,0.9704994,2938.6,2938.5,0.0023772]
[1644637746390,1.4614994,2938.6,2938.5,0.0023772]
[1644637746588,1.7614994,2938.6,2938.5,0.0023772]
[1644637746991,1.7614994,2938.6,2937.9,0.00264696]
[1644637746992,3.55,2938.5,2937.9,0.00264696]
[1644637747194,4.4016074,2938.5,2937.9,0.00264696]
[1644637747393,3.19417,2938.4,2937.9,0.00264696]
[1644637747596,0.1701,2938.3,2937.9,0.00264696]
[1644637747795,0.491,2938.2,2937.9,0.00264696]
[1644637747997,0.85576881,2938.1,2937.9,0.00264696]
[1644637748196,1.3424906,2938.1,2937.9,0.00264696]
[1644637748427,0.491,2938.1,2937.9,0.00501471]
[1644637748622,0.791,2938.1,2937.9,0.00501471]
[1644637748921,0.491,2938.1,2937.9,0.00501471]
[1644637749325,1.00930545,2938.0,2937.9,0.00264696]
[1644637749522,1.00930545,2938.0,2937.7,0.1701]
[1644637749723,1.00930545,2938.0,2937.9,0.00236779]
[1644637750524,1.00930545,2938.0,2937.9,3.5]
[1644637750723,1.86082545,2938.0,2937.9,3.5]
[1644637751126,3.95182545,2938.0,2937.9,3.5]
[1644637752173,5.2533,2937.9,2937.8,0.00786898]
[1644637752381,6.9144,2937.9,2937.8,0.00786898]
[1644637752582,7.2144,2937.9,2937.8,0.00786898]
[1644637752980,0.3,2937.8,2937.4,0.00264696]
[1644637753181,0.6611,2937.7,2937.4,0.00264696]
[1644637753382,0.9611,2937.7,2937.4,0.00264696]
[1644637753582,1.95006304,2937.6,2937.4,0.00264696]
[1644637753781,0.491,2937.5,2937.4,0.00264696]
[1644637753983,0.791,2937.5,2937.2,0.03148219]
[1644637754181,0.791,2937.5,2936.9,0.00264696]
[1644637754182,1.091,2937.5,2936.9,0.00264696]
[1644637754382,0.8516875,2937.4,2937.3,0.00787032]
[1644637754586,2.1943675,2937.4,2937.3,0.00787032]
[1644637754782,3.21963104,2937.4,2937.3,0.00787032]
[1644637755382,1.67471249,2937.4,2936.6,0.00264696]
[1644637755582,0.97994668,2936.9,2936.8,0.03148708]
[1644637756629,0.97994668,2936.9,2936.6,0.00264696]
[1644637756831,0.97994668,2936.9,2936.7,0.00787193]
[1644637757838,0.97994668,2936.9,2936.6,0.00264696]
[1644637758035,0.97994668,2936.9,2936.7,0.00787206]
[1644637759034,0.97994668,2936.9,2936.6,0.00264696]
[1644637759235,0.97994668,2936.9,2936.7,0.00787206]
[1644637759535,0.8517458,2937.1,2936.7,0.00787206]
[1644637759781,0.85167,2937.3,2936.7,0.00787206]
[1644637759976,0.1701,2937.8,2936.7,0.00787206]
[1644637760176,0.03064471,2938.0,2936.8,0.1701]
[1644637760377,4.465e-05,2936.9,2936.8,0.1701]
[1644637760576,4.465e-05,2936.9,2936.8,3.68897196]
[1644637760776,4.465e-05,2936.9,2936.8,4.68897196]
[1644637761177,4.465e-05,2936.9,2936.8,5.54032196]
[1644637761576,4.465e-05,2936.9,2936.8,8.74032196]
[1644637762077,4.465e-05,2936.9,2936.8,15.18027547]
[1644637762285,0.1701,2938.5,2937.3,0.85115]
[1644637762484,0.00589697,2938.8,2937.4,10.2187016]
[1644637762485,0.1701,2938.7,2937.4,10.2187016]
[1644637762681,0.1701,2938.7,2937.4,5.82950063]
[1644637762881,0.00589907,2938.8,2937.5,1.0]
[1644637763081,1.13809182,2938.6,2937.7,1.18239602]
[1644637763282,0.1701,2938.5,2937.8,0.00264426]
[1644637763529,0.1701,2938.5,2937.6,0.00264426]
[1644637763731,1.30819182,2938.6,2937.6,0.00264426]
[1644637763934,1.30819182,2938.6,2937.6,3.37826499]
[1644637764231,1.30819182,2938.6,2937.9,0.00785035]
[1644637764430,1.30819182,2938.6,2937.9,0.01049461]
[1644637764636,0.1701,2938.6,2937.9,3.22972964]
[1644637764846,0.00825373,2938.8,2938.1,4.99184523]
[1644637765036,3.4046137,2940.4,2938.1,4.99184523]
[1644637765037,0.1701,2939.6,2938.2,4.30194423]
[1644637765236,0.1701,2940.3,2938.3,3.64454426]
[1644637765437,0.00825413,2938.8,2938.4,3.6701]
[1644637765635,0.00825413,2938.8,2938.5,0.00264426]
[1644637766039,0.00825413,2938.8,2938.3,0.17274426]
[1644637766337,1.1749926,2939.1,2938.3,1.17274426]
[1644637766536,0.00825493,2938.8,2938.3,1.17274426]
[1644637766736,0.00825493,2938.8,2938.3,0.17274426]
[1644637767395,1.1749926,2939.1,2938.3,0.17274426]
[1644637767792,0.00825473,2938.8,2938.3,0.17274426]
[1644637768394,0.00825473,2938.8,2938.4,0.85092]
[1644637768593,0.00825473,2938.8,2938.5,0.00264426]
[1644637768893,0.00825473,2938.8,2938.5,1.00264426]
[1644637768894,0.00825483,2938.8,2938.5,1.00264426]
[1644637769094,0.00825483,2938.8,2938.6,3.52747534]
[1644637769493,0.00825483,2938.8,2938.6,7.35867534]
[1644637769693,0.00825483,2938.8,2938.7,3.37828083]
[1644637769896,1.06995094,2939.5,2938.7,3.38092509]
[1644637770197,0.001,2939.4,2938.8,0.00264426]
[1644637771430,0.00825468,2939.2,2938.8,0.00264426]
[1644637772131,0.00825468,2939.2,2938.8,3.20264426]
[1644637772333,0.001,2939.4,2938.8,3.20264426]
[1644637772536,0.00825476,2939.1,2938.8,3.20264426]
[1644637772733,0.00825476,2939.1,2938.8,3.2]
[1644637773333,0.00825476,2939.1,2938.9,3.2965909]
[1644637773535,0.1711,2940.1,2938.9,3.29923516]
[1644637773734,0.0082548,2939.1,2939.0,1.85074]
[1644637773935,0.0082548,2939.1,2939.0,7.15150137]
[1644637774134,0.0082548,2939.1,2939.0,6.90980213]
[1644637774535,0.0082548,2939.1,2939.0,10.06866022]
[1644637774775,1.05827433,2940.0,2939.0,10.06866022]
[1644637774776,0.001,2939.9,2939.0,9.81796636]
[1644637774975,0.00825472,2939.2,2939.1,0.00264191]
[1644637775178,0.00825472,2939.2,2939.1,3.8137772]
[1644637775375,0.001,2939.9,2939.4,0.00915316]
[1644637775977,0.17,2940.2,2939.4,0.00915316]
[1644637776175,1.0207167,2940.4,2939.4,0.00915316]
[1644637776377,0.17,2940.4,2939.4,1.00915316]
[1644637776576,0.17,2940.4,2939.5,3.70211531]
[1644637776776,0.492,2940.9,2939.7,1.14017819]
[1644637776777,1.18494331,2940.7,2939.7,1.14017819]
[1644637776978,1.18494331,2940.7,2939.8,3.73210589]
[1644637777178,0.001,2940.6,2939.8,3.90210589]
[1644637777381,0.001,2940.6,2939.8,0.17]
[1644637777382,0.00590065,2940.3,2939.8,0.17]
[1644637777785,0.00590065,2940.3,2939.8,1.02051]
[1644637777982,0.00590065,2940.3,2939.8,0.47]
[1644637778433,0.001,2940.6,2939.8,1.47]
[1644637778625,0.00535839,2940.2,2939.8,1.17]
[1644637778825,0.00535839,2940.2,2939.8,0.12]
[1644637779025,0.00535839,2940.2,2939.6,0.47]
[1644637779525,0.001,2940.6,2939.6,0.47]
[1644637779726,0.00771178,2940.0,2939.6,0.47]
[1644637779927,0.00771178,2940.0,2939.6,0.17]
[1644637780227,0.00771178,2940.0,2939.6,0.20323035]
[1644637780430,0.00771178,2940.0,2939.6,0.03323035]
[1644637780627,1.18494331,2940.7,2939.6,0.03323035]
[1644637781029,0.00771186,2939.9,2939.6,0.03323035]
[1644637781228,0.92258068,2940.2,2939.6,0.03323035]
[1644637781433,0.92258068,2940.2,2939.6,1.03323035]
[1644637781727,0.92258068,2940.2,2939.6,0.03323035]
[1644637783380,0.00530632,2940.0,2939.6,3.23323035]
[1644637784279,0.92258068,2940.2,2939.6,3.23323035]
[1644637784479,0.00766572,2940.0,2939.6,3.18323035]
[1644637785281,0.00766572,2940.0,2939.7,0.03322907]
[1644637785483,0.92258068,2940.2,2939.7,0.03322907]
[1644637785682,0.00766572,2940.0,2939.7,0.03322907]
[1644637786725,0.92258068,2940.2,2939.7,0.03322907]
[1644637786926,0.00767258,2940.0,2939.7,0.03322907]
[1644637787930,0.92258068,2940.2,2939.7,0.03322907]
[1644637788135,0.00767258,2940.0,2939.7,0.03322907]
[1644637788331,0.85099,2939.9,2939.7,0.03322907]
[1644637788532,0.17,2939.8,2939.7,0.03322907]
[1644637790178,0.17,2939.9,2939.6,3.18323035]
[1644637790379,1.14453753,2939.7,2939.6,3.18323035]
[1644637790578,0.97453753,2939.7,2939.6,3.18323035]
[1644637790785,0.96602078,2939.7,2939.6,3.18323035]
[1644637791880,1.13602078,2939.7,2939.6,3.18323035]
[1644637792987,0.96602078,2939.7,2939.6,3.18323035]
[1644637793629,0.06073817,2940.0,2939.6,3.18323035]
[1644637794029,0.05306972,2940.0,2939.6,3.18323035]
[1644637794429,0.06074157,2940.0,2939.6,3.18323035]
[1644637794730,0.06074157,2940.0,2939.6,0.85059]
[1644637795128,0.03192759,2939.7,2939.6,0.85059]
[1644637795328,0.03192759,2939.7,2939.4,1.10307569]
[1644637795730,0.03192759,2939.7,2939.5,0.85058]
[1644637796130,0.00767185,2940.0,2939.5,0.85058]
[1644637796131,0.00767185,2940.0,2939.7,0.03600407]
[1644637796331,1.168,2940.7,2939.7,0.03600407]
[1644637796530,0.001,2940.8,2939.7,0.03600407]
[1644637796730,0.17,2940.9,2939.7,0.03600407]
[1644637796731,0.00741832,2940.0,2939.7,0.03600407]
[1644637797689,0.97701286,2940.6,2939.7,0.03600407]
[1644637797886,0.00741837,2940.0,2939.7,1.88655407]
[1644637798089,1.837e-05,2940.0,2939.7,1.88655407]
[1644637798292,1.837e-05,2940.0,2939.8,0.491]
[1644637798786,0.001,2941.1,2939.8,0.491]
[1644637798986,0.001,2941.1,2940.2,0.85039]
[1644637799187,0.001,2941.1,2940.2,2.07815629]
[1644637799387,0.86904039,2941.8,2940.2,2.07815629]
[1644637799388,0.17,2941.5,2940.4,0.85031]
[1644637799591,0.001,2941.9,2940.4,2.08611]
[1644637799788,1.02749768,2942.0,2940.5,0.1698]
[1644637799987,0.001,2941.9,2940.5,0.1698]
[1644637800188,0.85137,2941.9,2940.5,2.02013]
[1644637800391,0.89493647,2941.6,2940.7,0.99485651]
[1644637800591,0.89493647,2941.6,2940.5,1.1698]
[1644637800789,0.89493647,2941.6,2940.5,0.1698]
[1644637801042,0.17,2941.5,2940.4,1.2358]
[1644637801241,0.17,2941.5,2940.4,1.5358]
[1644637801442,0.17,2941.5,2940.4,2.5358]
[1644637801443,0.00779477,2941.2,2940.4,2.5358]
[1644637801638,0.00779477,2941.2,2940.4,3.71403477]
[1644637801841,0.00779477,2941.2,2940.4,2.8358]
[1644637802244,0.00779477,2941.2,2940.4,1.8358]
[1644637802443,0.171,2941.5,2940.4,1.8358]
[1644637802643,0.00779493,2940.9,2940.4,1.8358]
[1644637803043,0.00779493,2940.9,2940.5,1.1399005]
[1644637803447,0.00779493,2940.9,2940.5,2.1399005]
[1644637803647,0.171,2941.5,2940.5,1.1399005]
[1644637803945,0.00782392,2940.8,2940.5,2.1399005]
[1644637804444,0.00782392,2940.8,2940.5,1.0]
[1644637804682,0.00782392,2940.8,2940.4,1.8358]
[1644637804891,1.0214432,2941.5,2940.5,0.17]
[1644637805083,0.00782395,2940.8,2940.5,0.17]
[1644637805283,0.00782395,2940.8,2940.5,1.17]
[1644637805485,0.00782395,2940.8,2940.6,0.03155156]
[1644637806086,0.171,2941.5,2940.6,3.13155156]
[1644637806388,0.00782392,2940.8,2940.6,3.13155156]
[1644637807188,0.001,2941.4,2940.6,3.13155156]
[1644637807189,0.93745797,2941.0,2940.6,3.13155156]
[1644637807590,0.00782014,2940.8,2940.6,3.13155156]
[1644637808435,0.93745797,2941.0,2940.6,3.13155156]
[1644637808730,0.00782014,2940.8,2940.6,3.13155156]
[1644637809330,0.00782014,2940.8,2940.6,3.43155156]
[1644637809530,0.17,2941.5,2940.6,3.43155156]
[1644637809730,0.17,2941.6,2940.6,3.43155156]
[1644637809931,0.001,2941.8,2940.6,3.43155156]
[1644637809932,0.00782014,2940.8,2940.6,3.43155156]
[1644637810130,0.00782014,2940.8,2940.7,1.0]
[1644637810332,0.00782014,2940.8,2940.6,3.43155156]
[1644637810534,0.00782014,2940.8,2940.6,3.4]
[1644637810937,0.88697306,2941.4,2940.6,3.4]
[1644637811236,0.00782072,2940.8,2940.6,3.7]
[1644637812035,0.88797306,2941.4,2940.6,3.7]
[1644637812280,0.00782072,2940.8,2940.6,3.7]
[1644637813178,0.88797306,2941.4,2940.6,4.87388603]
[1644637813579,0.00782072,2940.8,2940.7,1.0]
[1644637814380,0.88697306,2941.4,2940.7,1.0]
[1644637814880,0.0078206,2940.9,2940.7,1.0]
[1644637815679,0.001,2941.3,2940.7,1.0]
[1644637815926,0.00782057,2940.9,2940.7,1.0]
[1644637817434,0.00782057,2940.9,2940.7,1.17]
[1644637818033,0.88697306,2941.4,2940.7,1.17]
[1644637818234,0.00782058,2940.9,2940.7,1.17]
[1644637818633,0.00639932,2940.9,2940.7,1.17]
[1644637819234,0.171,2941.9,2940.9,0.85021]
[1644637819679,1.05304879,2941.6,2940.9,1.15021]
[1644637819881,0.001,2941.5,2940.9,1.45021]
[1644637820280,0.001,2941.5,2940.8,1.2336]
[1644637820682,0.00588313,2941.3,2940.8,1.5336]
[1644637821786,0.001,2941.5,2940.8,2.38385]
[1644637821983,0.00825311,2941.2,2940.8,2.38385]
[1644637822787,0.001,2941.5,2940.8,2.38385]
[1644637823187,0.00825316,2941.1,2940.8,2.38385]
[1644637824030,0.001,2941.5,2940.8,2.38385]
[1644637824230,0.0082532,2941.1,2940.8,2.38385]
[1644637824433,0.0082532,2941.1,2940.8,1.5336]
[1644637825030,0.0082532,2941.1,2940.8,1.2336]
[1644637825231,0.001,2941.5,2940.8,1.2336]
[1644637825531,0.0082532,2941.1,2940.8,1.2336]
[1644637826433,0.001,2941.5,2940.8,1.2336]
[1644637826631,0.0082532,2941.1,2940.8,1.2336]
[1644637827686,0.03400783,2941.5,2940.8,1.2336]
[1644637827687,0.001,2941.5,2940.8,1.2336]
[1644637827886,0.0082532,2941.1,2940.8,1.2336]
[1644637828888,0.001,2941.5,2940.8,1.2336]
[1644637829088,0.0082532,2941.1,2940.8,1.2336]